bitfinex-derivatives/quotes_SOLF0:USTF0_20250310
["timestamp","ask_amount","ask_price","bid_price","bid_amount"]
[1741616275470,8.2306,121.5,121.46,271.64]
[1741616275673,45.05932315,121.54,121.46,271.64]
[1741616275874,45.05932315,121.56,121.46,271.64]
[1741616276176,45.05932315,121.54,121.46,275.7944]
[1741616276374,0.05227659,121.52,121.5,0.05745114]
[1741616276574,8.2296,121.51,121.5,0.05745114]
[1741616276876,45.11159974,121.52,121.45,4.0374]
[1741616277072,45.05932315,121.49,121.45,4.0374]
[1741616277276,45.05932315,121.49,121.41,4.1544]
[1741616277676,45.05932315,121.5,121.41,4.1544]
[1741616278078,8.2905496,121.46,121.42,8.2352]
[1741616278274,0.0575496,121.46,121.41,4.13805293]
[1741616279681,8.2338,121.45,121.41,12.37395293]
[1741616279886,0.0575496,121.46,121.41,4.13805293]
[1741616280283,39.29022768,121.49,121.41,4.13805293]
[1741616280982,32.73212768,121.49,121.45,45.05932315]
[1741616281182,34.40622768,121.49,121.45,8.2332]
[1741616281479,34.40622768,121.49,121.46,0.0575496]
[1741616281480,0.05741768,121.48,121.46,0.0575496]
[1741616281675,26.17492768,121.49,121.48,8.2316]
[1741616281876,13.06512768,121.49,121.46,0.0575496]
[1741616282679,45.05932315,121.47,121.32,46.08971445]
[1741616282886,45.05932315,121.47,121.32,1.0303913]
[1741616282887,45.05932315,121.4,121.32,1.0303913]
[1741616283182,45.05932315,121.38,121.32,1.0303913]
[1741616283375,8.2411,121.34,121.32,1.0303913]
[1741616283571,45.05932315,121.36,121.32,1.0303913]
[1741616283788,45.05932315,121.38,121.32,1.0303913]
[1741616284091,45.05932315,121.42,121.32,1.0303913]
[1741616284273,8.2371,121.4,121.35,8.2399]
[1741616284584,45.05932315,121.38,121.32,1.0303913]
[1741616285084,8.2418,121.33,121.32,1.0303913]
[1741616285479,8.2418,121.33,121.32,0.971794]
[1741616285881,49.17932315,121.33,121.17,115.0]
[1741616286087,45.05932315,121.28,121.18,4.3294]
[1741616286475,45.05932315,121.33,121.18,4.3294]
[1741616286673,45.05932315,121.29,121.19,1.43502196]
[1741616286887,45.05932315,121.31,121.19,46.49434511]
[1741616287086,49.30542315,121.35,121.23,45.05932315]
[1741616287276,8.2419,121.33,121.25,45.05932315]
[1741616287587,11.39200438,121.36,121.26,4.3011]
[1741616287979,11.39200438,121.36,121.27,45.05932315]
[1741616288180,11.39200438,121.36,121.29,45.05932315]
[1741616288375,0.05226562,121.33,121.31,45.05932315]
[1741616288589,88.09252041,121.38,121.32,361.9186463]
[1741616288891,113.57468062,121.39,121.37,45.05932315]
[1741616289092,218.09270104,121.4,121.37,45.05932315]
[1741616289290,4.3685,121.47,121.37,45.05932315]
[1741616289476,2.05969359,121.46,121.35,45.05932315]
[1741616289677,4.3685,121.47,121.41,0.05498965]
[1741616289891,0.05429193,121.43,121.41,0.05498965]
[1741616290192,47.12028936,121.42,121.33,1.64839693]
[1741616290489,45.05932315,121.38,121.26,45.05932315]
[1741616290688,45.05932315,121.36,121.26,45.05932315]
[1741616291193,0.05994355,121.32,121.23,45.05932315]
[1741616291490,45.05932315,121.39,121.28,45.05932315]
[1741616291785,0.054655,121.29,121.24,45.05932315]
[1741616291992,53.78712315,121.41,121.27,45.05932315]
[1741616292186,53.78712315,121.41,121.26,45.05932315]
[1741616292187,6.1928857,121.4,121.33,8.2417]
[1741616292489,6.1928857,121.4,121.28,271.8]
[1741616292490,2.0612857,121.39,121.31,45.05932315]
[1741616292688,2.0612857,121.39,121.33,45.05932315]
[1741616293084,3.9998,121.44,121.35,45.05932315]
[1741616293287,45.05932315,121.47,121.35,45.05932315]
[1741616293288,7.9412,121.47,121.39,45.05932315]
[1741616293482,0.05996752,121.41,121.36,45.05932315]
[1741616293682,2.06000192,121.4,121.31,271.86]
[1741616294078,0.06164909,121.37,121.34,0.054655]
[1741616294289,0.06164909,121.37,121.34,8.295655]
[1741616294588,7.9412,121.47,121.36,45.05932315]
[1741616294589,8.2356,121.43,121.36,45.05932315]
[1741616294791,0.05657759,121.37,121.34,45.11397815]
[1741616295090,45.05932315,121.41,121.31,271.86]
[1741616295292,8.2401,121.36,121.31,271.86]
[1741616295481,0.0550833,121.37,121.34,0.054655]
[1741616296784,2.06118182,121.36,121.25,271.84]
[1741616296983,2.06118182,121.35,121.28,45.05932315]
[1741616297184,8.008,121.39,121.31,45.05932315]
[1741616297488,2.06059118,121.38,121.26,46.70632315]
[1741616297678,8.243,121.32,121.26,1.647]
[1741616297882,0.0521591,121.33,121.25,271.84]
[1741616298293,2.06127829,121.36,121.26,45.05932315]
[1741616298590,53.06732315,121.39,121.25,271.84]
[1741616298591,0.0581844,121.3,121.28,45.05932315]
[1741616298790,8.008,121.39,121.28,45.05932315]
[1741616298990,47.12039925,121.38,121.29,62.0]
[1741616299287,8.2422,121.33,121.25,271.84]
[1741616299499,45.05932315,121.36,121.25,271.84]
[1741616299694,2.06139201,121.35,121.28,8.2452]
[1741616299887,8.008,121.39,121.28,45.05932315]
[1741616300089,0.06103342,121.32,121.29,0.05671056]
[1741616300285,8.008,121.39,121.28,45.05932315]
[1741616300484,0.05723584,121.32,121.29,0.05480804]
[1741616300685,8.008,121.39,121.32,8.2423]
[1741616300891,2.06089766,121.38,121.3,45.05932315]
[1741616301083,2.06089766,121.38,121.28,45.05932315]
[1741616301485,47.12022081,121.38,121.26,45.05932315]
[1741616301687,2.06089766,121.37,121.26,45.05932315]
[1741616301893,0.05950551,121.33,121.24,45.05932315]
[1741616302092,0.05950551,121.33,121.26,62.0]
[1741616302292,45.05932315,121.38,121.26,62.0]
[1741616302293,45.05932315,121.38,121.27,45.05932315]
[1741616302484,2.06147974,121.37,121.26,62.0]
[1741616303188,0.06022411,121.33,121.3,0.0584948]
[1741616303492,8.2431,121.31,121.3,0.0584948]
[1741616303886,0.06022411,121.33,121.22,1.43437133]
[1741616304091,45.05932315,121.32,121.18,271.92]
[1741616304386,45.05932315,121.32,121.22,8.249]
[1741616304387,8.416,121.31,121.22,8.249]
[1741616304592,8.416,121.31,121.18,271.92]
[1741616304794,8.416,121.31,121.19,1.43502196]
[1741616304993,8.416,121.31,121.22,8.2492]
[1741616305193,8.2473,121.25,121.19,1.43502196]
[1741616305389,8.2473,121.25,121.2,8.2502]
[1741616305589,8.416,121.31,121.19,1.43502196]
[1741616305897,0.05732618,121.24,121.22,8.2488]
[1741616306085,45.11664933,121.24,121.13,45.05932315]
[1741616306393,8.416,121.31,121.16,1.5884]
[1741616306394,45.05932315,121.28,121.16,1.5884]
[1741616306602,8.416,121.31,121.17,107.05932315]
[1741616306893,8.2483,121.24,121.19,8.2508]
[1741616307096,8.2483,121.24,121.17,45.05932315]
[1741616307296,45.05932315,121.3,121.16,46.64772315]
[1741616307491,8.416,121.31,121.16,46.64772315]
[1741616307696,8.416,121.31,121.19,45.05932315]
[1741616307899,0.05445609,121.24,121.22,0.06057153]
[1741616308300,8.416,121.31,121.19,45.05932315]
[1741616308599,0.05505947,121.24,121.22,0.05688581]
[1741616308894,8.416,121.31,121.12,1.43567318]
[1741616309099,45.05932315,121.26,121.13,45.05932315]
[1741616310100,45.05932315,121.26,121.14,62.0]
[1741616310393,0.0616483,121.21,121.14,62.0]
[1741616310588,0.0616483,121.21,121.12,8.256]
[1741616310784,0.0616483,121.21,121.14,45.05932315]
[1741616310997,45.05932315,121.29,121.17,45.05932315]
[1741616311193,0.05462843,121.19,121.16,45.05932315]
[1741616311693,45.05932315,121.3,121.18,45.05932315]
[1741616311893,0.05471638,121.19,121.13,317.15932315]
[1741616312095,45.05932315,121.22,121.11,45.05932315]
[1741616312296,8.0305,121.21,121.09,46.64722315]
[1741616312599,0.05305793,121.17,121.08,1.43605827]
[1741616312799,0.05305793,121.17,121.07,45.05932315]
[1741616313101,45.05932315,121.2,121.08,45.05932315]
[1741616313395,0.05981678,121.13,121.06,8.2597]
[1741616313599,0.05981678,121.13,121.07,62.0]
[1741616314001,45.51053583,121.17,121.07,62.0]
[1741616314202,4.2186,121.16,121.07,62.0]
[1741616314399,0.05918822,121.11,121.08,45.51053583]
[1741616314703,0.01024698,121.11,121.1,45.51053583]
[1741616314887,0.01024698,121.11,121.08,0.05426594]
[1741616316402,0.01024698,121.11,121.01,45.51053583]
[1741616316597,0.01024698,121.11,120.99,45.51053583]
[1741616316797,8.4683,121.12,121.0,8.2637]
[1741616317002,8.4683,121.12,120.97,1.6476]
[1741616317203,8.4683,121.12,121.02,45.51053583]
[1741616317404,53.97883583,121.12,120.97,1.6476]
[1741616317699,0.06149236,121.06,120.97,45.51053583]
[1741616318093,45.51053583,121.09,120.97,45.51053583]
[1741616318397,0.05207667,121.03,120.93,1.648]
[1741616318594,45.5626125,121.03,120.93,1.648]
[1741616318796,8.291,121.02,120.93,1.648]
[1741616319106,0.06323674,120.99,120.95,45.51053583]
[1741616319302,0.06323674,120.99,120.96,62.0]
[1741616319499,0.06323674,120.99,120.9,45.51053583]
[1741616319802,0.06323674,120.99,120.91,45.51053583]
[1741616319991,0.06323674,120.99,120.89,3.0864326]
[1741616319992,45.51053583,121.08,120.97,45.51053583]
[1741616320199,8.291,121.07,120.97,45.51053583]
[1741616320391,4.0063,121.07,121.0,45.51053583]
[1741616320601,0.05400326,121.04,120.96,45.51053583]
[1741616320906,45.51053583,121.05,120.95,272.38]
[1741616321109,4.2824,121.06,120.95,272.38]
[1741616321402,8.267,120.96,120.89,319.32896843]
[1741616321603,0.0581315,121.01,120.89,319.32896843]
[1741616321803,45.51053583,121.02,120.83,272.38]
[1741616321804,8.2706,120.91,120.83,272.38]
[1741616322000,3.9639,121.05,120.88,45.51053583]
[1741616322305,0.05577792,120.96,120.91,45.51053583]
[1741616322601,0.05577792,120.96,120.93,45.51053583]
[1741616322900,3.9639,121.05,120.93,45.51053583]
[1741616323105,3.9639,121.05,120.96,45.51053583]
[1741616323402,45.51053583,120.99,120.92,62.0]
[1741616323603,45.51053583,121.01,120.92,62.0]
[1741616323905,45.51053583,121.04,120.92,62.0]
[1741616324093,45.51053583,121.04,120.91,45.51053583]
[1741616324094,0.05965359,120.98,120.91,45.51053583]
[1741616324301,8.32535359,120.98,120.91,45.51053583]
[1741616324499,0.05965359,120.98,120.91,45.51053583]
[1741616324702,0.05965359,120.98,120.9,45.51053583]
[1741616324903,0.05965359,120.98,120.93,45.51053583]
[1741616325112,3.9639,121.05,120.93,45.51053583]
[1741616325305,0.05710769,120.97,120.93,45.51053583]
[1741616325509,0.05710769,120.97,120.87,1.6566]
[1741616325813,45.51053583,121.02,120.89,45.51053583]
[1741616325996,4.391e-05,120.93,120.92,45.51053583]
[1741616326199,3.9639,121.05,120.94,8.2682]
[1741616326401,49.47443583,121.05,120.92,45.51053583]
[1741616326700,3.9639,121.05,120.92,45.51053583]
[1741616326897,8.2638,121.01,120.92,45.51053583]
[1741616327098,3.9639,121.05,120.96,45.51053583]
[1741616327497,9.033e-05,120.98,120.96,322.23053583]
[1741616327703,4.2691,121.1,120.97,1.6566]
[1741616327902,4.2691,121.1,121.02,45.51053583]
[1741616328102,8.1705,121.11,121.02,45.51053583]
[1741616328505,8.2579,121.1,121.04,45.51053583]
[1741616328710,8.1705,121.11,121.04,45.51053583]
[1741616329014,0.05480684,121.08,121.06,0.05457214]
[1741616330412,0.05480684,121.08,121.06,45.56510797]
[1741616330706,8.6025,121.18,121.07,62.0]
[1741616330911,4.1301,121.2,121.12,45.51053583]
[1741616331107,4.3433,121.23,121.12,272.56]
[1741616331317,45.51053583,121.21,121.09,45.51053583]
[1741616331513,4.1301,121.22,121.09,45.51053583]
[1741616331705,4.3433,121.23,121.15,45.51053583]
[1741616331906,4.3234,121.25,121.18,45.51053583]
[1741616332207,12.7968,121.3,121.21,45.51053583]
[1741616332405,33.76241052,121.34,121.2,45.51053583]
[1741616332608,8.6667,121.35,121.26,45.51053583]
[1741616332811,0.06090409,121.27,121.24,0.05952916]
[1741616333212,91.02107166,121.26,121.12,45.51053583]
[1741616333511,45.51053583,121.18,121.08,45.51053583]
[1741616333813,12.4564,121.17,121.08,45.51053583]
[1741616334019,4.2032,121.17,121.09,62.0]
[1741616334318,49.71373583,121.17,121.09,62.0]
[1741616334717,45.51053583,121.14,121.09,62.0]
[1741616335011,8.557,121.16,121.09,62.0]
[1741616335217,45.51053583,121.15,121.02,45.51053583]
[1741616335515,0.06191699,121.14,121.11,0.05853024]
[1741616335705,45.51053583,121.15,121.02,45.51053583]
[1741616336105,0.06228778,121.14,121.02,45.51053583]
[1741616336304,45.51053583,121.15,121.02,45.51053583]
[1741616337118,8.557,121.16,121.02,45.51053583]
[1741616337320,45.51053583,121.14,121.02,53.77283583]
[1741616337518,8.2588,121.08,121.07,0.04670734]
[1741616337905,0.05650795,121.1,121.0,318.03053583]
[1741616338418,45.51053583,121.14,121.01,70.2632]
[1741616338819,45.51053583,121.14,121.01,62.0]
[1741616339015,0.05576853,121.09,121.03,45.51053583]
[1741616339420,8.557,121.16,121.08,45.51053583]
[1741616339608,4.2047,121.16,121.08,45.51053583]
[1741616339921,45.51053583,121.09,120.95,45.51053583]
[1741616340121,45.51053583,121.09,120.91,2.4051]
[1741616340319,45.51053583,121.05,120.91,2.4051]
[1741616340513,45.51053583,121.05,120.93,45.51053583]
[1741616340716,4.1354,121.07,120.93,45.51053583]
[1741616340912,0.05835423,121.0,120.98,0.05576853]
[1741616341212,45.51053583,121.0,120.9,1.43834343]
[1741616341414,45.51053583,121.02,120.9,45.51053583]
[1741616341415,4.1357,120.99,120.9,45.51053583]
[1741616341612,4.1357,120.99,120.89,1.43834343]
[1741616341922,4.062,121.01,120.9,45.51053583]
[1741616342122,4.062,121.01,120.93,45.51053583]
[1741616342520,0.06075771,120.97,120.9,45.51053583]
[1741616342713,0.06075771,120.97,120.93,45.51053583]
[1741616343120,8.1193,121.06,120.96,45.51053583]
[1741616343325,45.51053583,121.14,120.99,45.51053583]
[1741616343521,8.385,121.13,121.05,45.51053583]
[1741616343829,8.385,121.13,120.97,272.48]
[1741616344026,8.385,121.13,121.01,45.51053583]
[1741616344330,4.0345,121.18,121.07,45.51053583]
[1741616344531,33.76241052,121.19,121.1,45.51053583]
[1741616345026,33.76241052,121.19,121.08,49.52163583]
[1741616345323,33.76241052,121.19,121.1,45.51053583]
[1741616345525,33.76241052,121.19,121.11,62.0]
[1741616345726,0.01323639,121.16,121.13,0.05964655]
[1741616345929,33.76241052,121.19,121.15,45.51053583]
[1741616346225,32.16181052,121.19,121.18,45.51053583]
[1741616346422,1.64948453,121.25,121.16,272.56]
[1741616346927,8.2493,121.22,121.16,272.56]
[1741616347121,0.06278915,121.22,121.19,0.05218739]
[1741616347312,0.06278915,121.22,121.2,45.51053583]
[1741616347517,1.64948453,121.25,121.2,91.02107166]
[1741616347719,1.64948453,121.25,121.23,45.51053583]
[1741616347920,1.64948453,121.25,121.2,45.51053583]
[1741616348425,1.64948453,121.25,121.17,47.92413583]
[1741616348818,0.05720967,121.24,121.21,0.06140779]
[1741616349023,0.05720967,121.24,121.22,62.0]
[1741616349223,0.05720967,121.24,121.21,0.06140779]
[1741616349622,8.254,121.16,121.1,272.38]
[1741616349817,45.51053583,121.23,121.08,45.51053583]
[1741616349818,45.51053583,121.21,121.08,45.51053583]
[1741616350020,4.0312,121.2,121.08,45.51053583]
[1741616350217,45.51053583,121.19,121.06,181.58774646]
[1741616350422,49.54173583,121.2,121.06,136.07721063]
[1741616350622,49.54173583,121.2,121.08,45.51053583]
[1741616350923,0.05578595,121.14,121.12,0.05641297]
[1741616351223,8.2595,121.07,121.06,28.48341063]
[1741616351614,4.14,121.07,121.05,206.6080987]
[1741616351816,53.77073583,121.06,121.05,193.9208987]
[1741616352024,45.51053583,121.09,120.97,45.51053583]
[1741616352222,45.51053583,121.04,120.92,193.9208987]
[1741616352522,8.269,120.93,120.92,193.9208987]
[1741616352932,12.409,120.93,120.92,168.3561987]
[1741616353319,12.409,120.93,120.92,77.5554987]
[1741616353519,8.2697,120.92,120.91,274.47487103]
[1741616353719,8.2697,120.92,120.91,274.52690277]
[1741616353917,8.274,120.86,120.79,4.3012]
[1741616354131,45.51053583,120.9,120.79,4.3012]
[1741616354335,45.51053583,120.8,120.64,329.9330736]
[1741616354525,45.51053583,120.84,120.66,45.51053583]
[1741616354526,45.51053583,120.78,120.66,45.51053583]
[1741616354925,45.51053583,120.84,120.69,45.51053583]
[1741616355129,45.51053583,120.84,120.7,45.51053583]
[1741616355328,45.51053583,120.79,120.65,647.92360943]
[1741616355528,8.2808,120.76,120.65,329.9330736]
[1741616355728,5.77659585,120.83,120.65,329.9330736]
[1741616355729,0.05254818,120.78,120.74,45.51053583]
[1741616356028,272.74,120.93,120.72,45.51053583]
[1741616356029,8.2693,120.93,120.77,91.02107166]
[1741616356228,5.76197457,120.92,120.85,45.51053583]
[1741616356536,5.76197457,120.92,120.88,45.51053583]
[1741616356728,45.51053583,121.02,120.81,272.74]
[1741616356729,45.51053583,120.95,120.83,45.51053583]
[1741616357030,45.51053583,120.89,120.75,45.51053583]
[1741616357240,45.51053583,120.86,120.73,7.9746]
[1741616357535,45.51053583,120.86,120.73,3.9793]
[1741616357731,45.51053583,120.86,120.78,0.06290089]
[1741616357932,135.77369314,120.89,120.78,0.06290089]
[1741616358124,135.77369314,120.89,120.8,45.51053583]
[1741616358432,257.04288904,120.91,120.86,45.51053583]
[1741616358629,257.04288904,120.91,120.88,8.2721]
[1741616358835,257.04288904,120.91,120.89,45.51053583]
[1741616359135,283.49418882,120.94,120.92,8.2691]
[1741616359333,283.49418882,120.94,120.93,45.51053583]
[1741616359637,232.03805942,120.94,120.93,49.65053583]
[1741616359832,0.05703408,120.95,120.93,4.14]
[1741616360032,203.10485942,120.98,120.94,91.02107166]
[1741616360231,74.12214425,121.03,121.02,8.2629]
[1741616360424,61.60304425,121.03,121.02,53.77343583]
[1741616360634,4.1396,121.13,121.02,53.77343583]
[1741616360635,4.1344,121.15,121.02,95.16107166]
[1741616360932,45.51053583,121.21,121.03,272.88]
[1741616361131,0.05394716,121.1,121.05,45.51053583]
[1741616361333,0.05394716,121.1,121.08,8.2582]
[1741616361533,4.716e-05,121.1,121.08,45.51053583]
[1741616361734,8.2483,121.23,121.08,95.19837799]
[1741616361933,49.64493583,121.29,121.14,45.51053583]
[1741616362135,4.1344,121.29,121.17,45.51053583]
[1741616362332,4.1631,121.31,121.24,8.2477]
[1741616362636,4.1344,121.37,121.26,45.51053583]
[1741616363133,0.06284194,121.29,121.26,0.05734483]
[1741616363533,45.51053583,121.31,121.2,45.51053583]
[1741616363729,0.05938492,121.29,121.26,0.05532322]
[1741616363928,45.51053583,121.27,121.17,272.74]
[1741616364127,4.1344,121.37,121.14,45.51053583]
[1741616364340,45.51053583,121.27,121.14,45.51053583]
[1741616364639,45.51053583,121.27,121.21,133.79112154]
[1741616364843,45.51053583,121.24,121.21,127.22622154]
[1741616365028,45.51053583,121.22,121.16,277.46818679]
[1741616365228,45.51053583,121.17,121.15,43.46435996]
[1741616365628,45.51053583,121.2,121.15,43.46435996]
[1741616365834,49.87213583,121.26,121.15,0.05510839]
[1741616366039,45.51053583,121.22,121.15,0.05510839]
[1741616366233,45.51053583,121.22,121.11,45.51053583]
[1741616366234,0.06345616,121.19,121.11,45.51053583]
[1741616366431,0.06345616,121.19,121.06,272.54]
[1741616366628,0.06345616,121.19,121.17,0.05401888]
[1741616366828,4.3616,121.26,121.17,45.56455471]
[1741616367038,45.51053583,121.32,121.17,45.51053583]
[1741616367238,45.51053583,121.32,121.15,272.54]
[1741616367239,45.51053583,121.27,121.15,272.54]
[1741616367436,45.51053583,121.21,121.1,45.51053583]
[1741616367640,45.51053583,121.21,121.07,45.51053583]
[1741616368528,0.05717822,121.15,121.13,0.06080312]
[1741616368728,45.51053583,121.26,121.13,0.06080312]
[1741616368935,45.51053583,121.26,121.15,8.2538]
[1741616369136,45.51053583,121.26,121.16,45.51053583]
[1741616369340,47.15906863,121.32,121.18,8.2514]
[1741616369536,47.15906863,121.32,121.19,45.51053583]
[1741616369744,45.51053583,121.35,121.2,272.48]
[1741616369937,45.51053583,121.38,121.23,45.51053583]
[1741616370133,45.51053583,121.38,121.26,45.57334634]
[1741616370338,45.51053583,121.41,121.29,45.51053583]
[1741616370537,8.4269,121.43,121.31,45.51053583]
[1741616370839,8.4269,121.43,121.34,45.51053583]
[1741616371040,45.51053583,121.42,121.3,45.51053583]
[1741616371635,8.4269,121.43,121.33,45.51053583]
[1741616371837,11.09462425,121.48,121.35,45.51053583]
[1741616372032,11.09462425,121.48,121.37,45.51053583]
[1741616372249,11.09462425,121.48,121.41,45.51053583]
[1741616372448,11.09462425,121.48,121.42,62.0]
[1741616372841,0.06192672,121.46,121.43,0.05683721]
[1741616373143,11.09462425,121.48,121.44,45.51053583]
[1741616373346,45.51053583,121.58,121.46,45.51053583]
[1741616373743,45.51053583,121.56,121.44,45.51053583]
[1741616373945,11.09462425,121.66,121.5,45.51053583]
[1741616374144,4.1012,121.65,121.48,272.14]
[1741616374340,45.51053583,121.62,121.5,45.51053583]
[1741616374645,45.51053583,121.62,121.52,0.05344781]
[1741616374646,0.05775124,121.55,121.52,0.05344781]
[1741616375041,0.05775124,121.55,121.52,45.56398364]
[1741616375240,4.1012,121.65,121.54,45.51053583]
[1741616375443,4.1012,121.65,121.52,0.05657003]
[1741616375444,45.51053583,121.63,121.52,0.05657003]
[1741616375642,45.51053583,121.61,121.52,0.05657003]
[1741616375845,45.51053583,121.63,121.52,45.56710586]
[1741616376049,4.1012,121.65,121.54,45.51053583]
[1741616376346,359.36737432,121.57,121.54,45.51053583]
[1741616376545,359.36737432,121.57,121.56,107.51053583]
[1741616376846,359.42134597,121.57,121.56,62.0]
[1741616377043,359.42134597,121.57,121.46,45.51053583]
[1741616377245,359.42134597,121.57,121.55,0.06133545]
[1741616377548,359.36737432,121.57,121.48,45.51053583]
[1741616377749,359.42080523,121.57,121.46,45.51053583]
[1741616378052,359.42080523,121.57,121.55,0.06173834]
[1741616378243,359.36737432,121.57,121.55,0.06173834]
[1741616378455,4.0807,121.69,121.55,4.12]
[1741616378643,2.209e-05,121.57,121.56,45.51053583]
[1741616378840,45.51053583,121.71,121.56,45.51053583]
[1741616379041,45.51053583,121.71,121.59,45.51053583]
[1741616379247,8.187,121.73,121.59,45.51053583]
[1741616379449,8.187,121.73,121.62,45.51053583]
[1741616379654,8.187,121.73,121.64,45.51053583]
[1741616379853,53.69753583,121.73,121.6,45.51053583]
[1741616380049,45.51053583,121.69,121.61,62.0]
[1741616380358,45.51053583,121.64,121.52,45.51053583]
[1741616380550,45.51053583,121.68,121.55,45.51053583]
[1741616380751,8.2201,121.65,121.64,0.0606116]
[1741616381051,0.05699839,121.63,121.55,45.51053583]
[1741616381250,45.56753422,121.63,121.52,45.51053583]
[1741616381444,45.51053583,121.68,121.51,279.9694]
[1741616381445,45.51053583,121.61,121.51,271.74]
[1741616381652,45.51053583,121.58,121.46,45.51053583]
[1741616381846,53.86843583,121.62,121.49,45.51053583]
[1741616382047,8.3579,121.62,121.54,45.51053583]
[1741616382246,271.74,121.71,121.56,45.51053583]
[1741616382247,8.2205,121.65,121.56,45.51053583]
[1741616382446,45.51053583,121.64,121.52,45.51053583]
[1741616382658,0.05909547,121.59,121.45,271.66]
[1741616382849,45.51053583,121.62,121.57,0.05507039]
[1741616383155,49.73803583,121.68,121.57,0.05507039]
[1741616383357,4.2275,121.68,121.59,45.51053583]
[1741616383753,0.05547179,121.64,121.61,0.05707587]
[1741616384155,0.05547179,121.64,121.62,45.51053583]
[1741616384844,0.05547179,121.64,121.61,0.05707587]
[1741616385052,0.05547179,121.64,121.63,45.51053583]
[1741616385253,0.05547179,121.64,121.61,0.05707587]
[1741616385448,4.2275,121.73,121.63,45.51053583]
[1741616385652,45.51053583,121.71,121.61,0.05707587]
[1741616385853,4.2275,121.73,121.6,45.51053583]
[1741616386255,45.51053583,121.69,121.56,45.51053583]
[1741616386459,4.2275,121.73,121.56,45.51053583]
[1741616386655,4.2275,121.73,121.61,45.51053583]
[1741616386960,0.06187282,121.64,121.61,45.57352136]
[1741616387158,4.2275,121.73,121.61,45.51053583]
[1741616387454,4.2275,121.73,121.64,45.51053583]
[1741616387753,45.51053583,121.76,121.64,45.51053583]
[1741616387954,0.06181698,121.68,121.62,317.03053583]
[1741616388158,45.51053583,121.77,121.62,317.03053583]
[1741616388360,45.51053583,121.74,121.62,317.03053583]
[1741616388561,0.05409676,121.66,121.64,0.06164198]
[1741616388857,45.51053583,121.77,121.62,317.03053583]
[1741616389256,0.05372047,121.66,121.64,0.05384235]
[1741616389655,8.2185,121.68,121.62,325.25253583]
[1741616389850,45.51053583,121.74,121.62,317.03053583]
[1741616390057,0.05999437,121.66,121.64,0.05817568]
[1741616390257,45.51053583,121.74,121.62,317.03053583]
[1741616390452,45.51053583,121.71,121.6,45.51053583]
[1741616390648,45.51053583,121.71,121.57,62.0]
[1741616390649,0.05931227,121.66,121.64,0.06287382]
[1741616390848,0.05931227,121.66,121.51,8.2686]
[1741616391054,45.51053583,121.64,121.53,45.51053583]
[1741616391361,45.51053583,121.6,121.48,316.91053583]
[1741616391751,45.51053583,121.62,121.48,316.91053583]
[1741616391752,45.51053583,121.58,121.48,271.4]
[1741616391959,45.51053583,121.58,121.46,45.51053583]
[1741616392262,8.2747,121.59,121.44,45.51053583]
[1741616392263,0.0555465,121.55,121.44,45.51053583]
[1741616392453,0.0555465,121.55,121.47,45.51053583]
[1741616392854,4.0093,121.66,121.55,8.2269]
[1741616393059,4.0093,121.66,121.56,45.51053583]
[1741616393559,0.05579163,121.62,121.6,0.05954835]
[1741616393957,0.05579163,121.62,121.48,8.2315]
[1741616393958,8.2282,121.53,121.48,8.2315]
[1741616394160,45.51053583,121.57,121.47,45.51053583]
[1741616394354,45.51053583,121.59,121.47,45.51053583]
[1741616394559,45.51053583,121.55,121.42,316.87053583]
[1741616394774,45.51053583,121.55,121.42,45.51053583]
[1741616394956,45.51053583,121.51,121.4,45.51053583]
[1741616395159,0.05204052,121.5,121.47,0.05785864]
[1741616395667,45.51053583,121.57,121.44,45.51053583]
[1741616395869,49.85063583,121.58,121.46,45.51053583]
[1741616396074,8.232,121.48,121.42,53.74583583]
[1741616396371,0.05792855,121.53,121.51,0.05894288]
[1741616396567,8.2335,121.46,121.41,271.36]
[1741616396770,45.51053583,121.48,121.42,62.0]
[1741616396974,0.05684375,121.53,121.42,62.0]
[1741616397268,45.51053583,121.54,121.44,0.05448339]
[1741616397463,0.06092309,121.49,121.44,0.05448339]
[1741616397662,45.51053583,121.48,121.37,45.51053583]
[1741616397864,45.51053583,121.48,121.36,45.51053583]
[1741616398071,45.51053583,121.44,121.29,271.46]
[1741616398270,45.51053583,121.46,121.34,45.51053583]
[1741616398576,45.51053583,121.46,121.41,0.05597181]
[1741616398577,0.05953894,121.43,121.41,0.05597181]
[1741616399078,3.938,121.52,121.42,45.51053583]
[1741616399280,3.938,121.52,121.41,45.51053583]
[1741616399669,8.2315,121.49,121.41,45.51053583]
[1741616399872,45.51053583,121.51,121.39,45.51053583]